bitfinex/quotes_ETHUSD_20220218
["timestamp","ask_amount","ask_price","bid_price","bid_amount"]
[1645172540195,2.43318995,2919.8,2919.4,1.20950917]
[1645172540196,2.43318995,2919.8,2919.5,0.00493815]
[1645172540432,0.23062474,2919.7,2919.5,0.00337226]
[1645172540634,0.23062474,2919.7,2919.3,1.21254757]
[1645172541235,0.23062474,2919.7,2919.4,0.00301704]
[1645172541436,0.23062474,2919.7,2919.4,1.21219235]
[1645172541634,0.23062474,2919.7,2919.5,0.00337226]
[1645172541837,1.23062474,2919.7,2919.5,0.00337226]
[1645172542036,0.23062474,2919.6,2919.4,0.00301704]
[1645172542238,0.23062474,2919.6,2919.3,0.00337226]
[1645172542434,1.08745474,2919.6,2919.3,0.00337226]
[1645172542634,1.08745474,2919.6,2919.5,0.00313201]
[1645172542635,1.45683,2919.6,2919.5,0.00313201]
[1645172542834,1.68721959,2919.6,2919.5,0.00313201]
[1645172543441,1.68721959,2919.6,2919.3,0.00337226]
[1645172543647,1.08721059,2919.5,2919.4,0.00313205]
[1645172543843,2.38721059,2919.5,2919.4,0.00313205]
[1645172544089,5.87590904,2919.5,2919.4,0.00313205]
[1645172544290,2.38721059,2919.5,2919.2,4.29082245]
[1645172544488,5.70148959,2919.4,2919.3,0.00500852]
[1645172544894,20.8970379,2919.1,2917.7,4.14521963]
[1645172545089,20.8970379,2919.1,2917.8,1.19013379]
[1645172545090,21.75435,2918.9,2917.8,1.19013379]
[1645172545289,1.32638959,2918.8,2917.9,1.19013379]
[1645172545490,0.23038959,2918.7,2918.0,1.19013379]
[1645172545689,0.23038959,2918.7,2917.5,6.6318]
[1645172545690,0.23038959,2918.7,2918.1,1.19013379]
[1645172545889,1.14374607,2918.5,2918.2,1.19013379]
[1645172546188,0.8572,2918.3,2918.2,0.00300488]
[1645172546591,1.1572,2918.3,2918.2,0.00300488]
[1645172546790,1.4572,2918.3,2918.2,0.00300488]
[1645172546989,1.4572,2918.3,2918.0,1.18922411]
[1645172547189,1.4572,2918.3,2918.1,1.18922411]
[1645172547393,1.4572,2918.3,2918.1,0.00300495]
[1645172547590,2.3143965,2918.3,2918.1,0.00300495]
[1645172548236,2.3143965,2918.3,2918.1,1.18739618]
[1645172548437,2.3143965,2918.3,2917.6,1.04024772]
[1645172548638,2.3143965,2918.3,2918.1,0.00300499]
[1645172549437,2.3143965,2918.3,2917.7,1.18679663]
[1645172549638,2.3143965,2918.3,2918.1,0.00301986]
[1645172549838,0.6,2918.3,2918.1,0.00301986]
[1645172550239,0.3,2918.3,2918.1,0.00301986]
[1645172550638,0.6,2918.5,2917.7,1.18679663]
[1645172550839,0.3,2918.5,2917.7,1.18679663]
[1645172551042,0.3,2918.5,2918.1,0.00301986]
[1645172551241,0.3,2918.6,2918.1,0.00301986]
[1645172551441,0.8571361,2918.3,2918.1,0.00301986]
[1645172551984,1.1571361,2918.3,2918.2,0.01775804]
[1645172552185,2.0142761,2918.3,2918.2,0.01775804]
[1645172557037,2.0142761,2918.3,2918.1,0.07377066]
[1645172557845,1.7140336,2918.6,2918.1,0.0707528]
[1645172558045,1.1929,2918.8,2918.1,0.0707528]
[1645172558046,1.1929,2918.8,2918.1,0.0737707]
[1645172558846,1.18452505,2918.8,2918.1,0.0737707]
[1645172559082,1.18452505,2918.8,2918.1,0.0707528]
[1645172559083,1.48452505,2918.8,2918.1,0.0707528]
[1645172559284,1.48452505,2918.8,2918.3,0.00301771]
[1645172559486,2.34146625,2918.8,2918.3,0.00301771]
[1645172559883,1.1569412,2918.8,2918.3,0.00800255]
[1645172560282,1.1569412,2918.8,2918.1,0.0707528]
[1645172560488,1.1569412,2918.8,2918.4,0.00301758]
[1645172561485,1.1569412,2918.8,2918.2,1.15378566]
[1645172561685,1.1569412,2918.8,2918.5,0.00301755]
[1645172562085,1.85695,2918.9,2918.8,0.40131835]
[1645172562086,0.85695,2918.9,2918.8,0.40131835]
[1645172562487,0.00187147,2919.0,2918.8,0.40630319]
[1645172562838,0.85875467,2919.0,2918.8,0.40630319]
[1645172564039,0.85875467,2919.0,2918.8,0.40932051]
[1645172564241,0.3,2918.9,2918.8,0.40932051]
[1645172565041,0.3,2918.9,2918.8,0.40630319]
[1645172565843,0.30187147,2919.0,2918.8,0.40630319]
[1645172566042,0.00187147,2919.0,2918.8,0.40630319]
[1645172566445,0.97934935,2919.1,2918.8,0.40932051]
[1645172566690,0.67934935,2919.1,2918.8,0.40932051]
[1645172566889,0.67934935,2919.1,2918.9,0.05270003]
[1645172567789,0.67934935,2919.1,2918.9,0.05571727]
[1645172568595,0.67934935,2919.1,2918.9,0.05270003]
[1645172568794,0.97934935,2919.1,2918.9,0.05270003]
[1645172568993,0.97934935,2919.1,2918.9,0.05571727]
[1645172569795,0.97934935,2919.1,2918.9,0.05270003]
[1645172570340,0.97934935,2919.1,2918.9,0.05571727]
[1645172571142,0.97934935,2919.1,2918.9,0.05270003]
[1645172571348,0.97934935,2919.1,2918.9,0.05571727]
[1645172572343,0.97934935,2919.1,2918.9,0.05270003]
[1645172572544,0.97934935,2919.1,2918.9,0.05571727]
[1645172573549,0.97934935,2919.1,2918.9,0.05270003]
[1645172573749,0.97934935,2919.1,2918.9,0.05571727]
[1645172574488,0.97934935,2919.1,2918.9,0.00571727]
[1645172574689,0.97934935,2919.1,2918.9,0.00270003]
[1645172574890,0.97934935,2919.1,2918.9,0.00571727]
[1645172575897,0.1711,2919.6,2918.9,3.44063553]
[1645172576093,1.35266,2920.0,2918.9,3.44063553]
[1645172576094,1.1599,2920.1,2919.0,1.14018146]
[1645172576291,0.29787572,2920.0,2919.1,1.14018146]
[1645172576493,0.29787572,2920.0,2919.2,1.13519662]
[1645172576691,5.0877,2920.6,2919.2,1.13519662]
[1645172576692,6.2519,2920.6,2919.2,1.13519662]
[1645172576893,0.29785278,2920.5,2920.4,1.12596398]
[1645172577094,0.29785278,2920.6,2919.6,0.00301087]
[1645172577291,0.29785278,2920.5,2919.6,0.00301087]
[1645172577492,0.01432414,2920.7,2919.6,0.00301087]
[1645172577692,0.29775379,2920.6,2919.6,0.00301087]
[1645172578153,0.29775379,2920.6,2920.0,1.02489454]
[1645172578649,0.29775379,2920.5,2920.0,1.02489454]
[1645172578845,0.29775379,2920.4,2920.0,1.02489454]
[1645172579046,0.01432512,2920.7,2920.0,1.02489454]
[1645172579246,0.29782684,2920.6,2920.0,1.02489454]
[1645172579647,0.29782684,2920.5,2920.0,1.02489454]
[1645172579847,0.29782684,2920.4,2920.0,1.02489454]
[1645172580047,0.29782684,2920.3,2920.0,1.02489454]
[1645172580247,0.00286526,2920.7,2920.0,1.02489454]
[1645172580449,0.30076031,2920.7,2920.0,1.02489454]
[1645172580648,0.29789505,2920.7,2920.0,1.02489454]
[1645172580847,0.29789505,2920.6,2920.0,1.02489454]
[1645172583492,0.00286505,2920.7,2920.0,1.02489454]
[1645172583493,0.29789505,2920.5,2920.0,1.02489454]
[1645172583695,0.29789505,2920.4,2920.0,1.02489454]
[1645172583893,0.29789505,2920.3,2920.0,1.02489454]
[1645172584094,0.00286505,2920.7,2920.0,1.02489454]
[1645172584293,0.29803848,2920.8,2920.0,1.02489454]
[1645172584495,0.31236286,2920.7,2920.0,1.02489454]
[1645172584693,0.29803848,2920.6,2920.0,1.02489454]
[1645172585343,0.29803848,2920.6,2919.6,1.17651087]
[1645172585543,0.29803848,2920.6,2919.7,1.13480271]
[1645172585944,0.29803848,2920.5,2919.7,1.13480271]
[1645172586144,0.29803848,2920.4,2919.7,1.13480271]
[1645172586349,0.29803848,2920.3,2919.8,0.8584639]
[1645172586548,0.29803848,2920.6,2919.8,0.8584639]
[1645172586747,1.15437948,2920.5,2919.8,0.8584639]
[1645172586948,0.29785068,2920.4,2919.8,0.8584639]
[1645172587147,0.59785068,2920.4,2919.6,1.17651087]
[1645172587345,0.29785068,2920.3,2919.6,0.00301087]
[1645172587548,0.29785068,2920.3,2919.3,0.00301709]
[1645172587748,0.8566223,2920.2,2919.3,0.00301709]
[1645172587951,3.79785068,2920.1,2919.1,1.20838484]
[1645172588152,0.29785068,2920.0,2919.3,0.00301702]
[1645172589193,0.29785068,2920.0,2919.1,0.00498484]
[1645172589393,0.29785068,2920.0,2919.3,0.00301698]
[1645172589595,1.46115233,2920.0,2919.3,0.00301698]
[1645172589797,2.16330165,2920.0,2919.3,0.00301698]
[1645172590294,2.16330165,2920.0,2919.2,1.13431188]
[1645172590494,2.16330165,2920.0,2919.3,0.00301698]
[1645172590897,0.29790994,2919.9,2919.3,0.00301698]
[1645172591498,0.29790994,2919.9,2919.1,0.00498484]
[1645172591695,0.29790994,2919.9,2919.3,0.00301697]
[1645172592696,0.29790994,2919.9,2919.1,0.00498484]
[1645172592941,0.29790994,2919.9,2919.3,0.00301698]
[1645172593742,3.79790994,2919.9,2919.3,0.00301698]
[1645172593941,2.15470994,2919.8,2918.9,0.00498484]
[1645172594145,0.00124222,2919.1,2918.9,0.00498484]
[1645172595340,0.00124222,2919.1,2918.9,0.00800206]
[1645172596340,0.00124222,2919.1,2918.9,0.00498484]
[1645172596587,0.00124222,2919.1,2918.9,0.00800206]
[1645172597394,0.3,2919.3,2919.1,0.0003006]
[1645172597597,6.1528,2919.8,2919.1,0.0003006]
[1645172597796,0.29832647,2919.7,2919.1,0.00528544]
[1645172598200,3.79832647,2919.7,2919.1,0.0003006]
[1645172598401,0.29832647,2919.6,2919.1,0.0003006]
[1645172598601,1.29832647,2919.6,2919.1,0.0003006]
[1645172598798,0.29832647,2919.5,2919.1,0.0003006]
[1645172598999,0.29832647,2919.5,2919.2,0.00301696]
[1645172599000,0.59832647,2919.5,2919.2,0.00301696]
[1645172599200,0.29832647,2919.4,2919.2,0.00301696]
[1645172600000,0.29832647,2919.4,2919.1,0.0003006]
[1645172600199,0.29832647,2919.4,2919.2,0.00301702]
[1645172601244,0.29832647,2919.4,2919.1,0.0003006]
[1645172601543,0.29832647,2919.4,2919.2,0.00301702]
[1645172602347,0.29832647,2919.4,2919.1,0.0003006]
[1645172602549,0.29832647,2919.4,2919.2,0.00301702]
[1645172603447,0.29832647,2919.4,2919.1,0.0003006]
[1645172603847,0.29832647,2919.4,2919.2,0.003017]
[1645172604694,0.29832647,2919.4,2919.1,0.0003006]
[1645172604894,0.29832647,2919.4,2919.2,0.003017]
[1645172605899,0.29832647,2919.4,2919.1,0.0003006]
[1645172606098,0.29832647,2919.4,2919.2,0.003017]
[1645172606799,1.15518647,2919.4,2919.2,0.003017]
[1645172607002,0.29832647,2919.3,2919.2,0.003017]
[1645172607198,0.29832647,2919.3,2919.1,0.0003006]
[1645172607399,0.59832647,2919.3,2919.2,0.00301701]
[1645172608343,0.59832647,2919.3,2919.1,0.0003006]
[1645172608647,0.29832647,2919.2,2919.1,0.00331764]
[1645172609644,0.29832647,2919.2,2919.1,0.0003006]
[1645172612688,0.29832647,2919.2,2919.1,1.13976483]
[1645172612892,0.29832647,2919.2,2919.1,0.0003006]
[1645172614394,0.29832647,2919.2,2918.9,0.00498484]
[1645172614395,5.0,2919.1,2918.9,0.00498484]
[1645172614593,1.32544522,2919.0,2918.9,0.00498484]
[1645172614797,2.71156138,2919.0,2918.9,0.00498484]
[1645172615196,1.68444263,2919.0,2918.9,0.00498484]
[1645172615443,0.59832647,2919.0,2918.9,0.00498484]
[1645172615643,1.59832647,2919.0,2918.9,0.00498484]
[1645172616244,0.59832647,2919.0,2918.9,0.00498484]
[1645172616444,2.77669494,2919.0,2918.9,0.00498484]
[1645172618251,1.59832647,2919.0,2918.9,0.00498484]
[1645172618648,0.59832647,2919.0,2918.9,0.00498484]
[1645172618849,1.59832647,2919.0,2918.9,0.00498484]
[1645172619092,0.59832647,2919.0,2918.9,0.00498484]
[1645172619290,0.29832647,2919.0,2918.9,0.00498484]
[1645172619489,1.83761176,2919.6,2918.9,3.50498484]
[1645172619490,1.18157147,2919.6,2918.9,3.50498484]
[1645172619689,0.30708185,2919.5,2919.0,1.13075413]
[1645172619891,0.30708185,2919.4,2919.0,1.13075413]
[1645172620093,0.00187147,2919.6,2919.0,1.13075413]
[1645172620292,0.30708185,2919.7,2919.0,1.13075413]
[1645172620491,0.85678,2919.6,2919.0,1.13075413]
[1645172620693,0.85678,2919.6,2919.1,0.00301709]
[1645172620694,0.30708185,2919.5,2919.1,0.00301709]
[1645172621191,0.85678,2919.6,2919.1,0.00301709]
[1645172621593,0.85678,2919.6,2919.0,1.13075413]
[1645172621791,0.85678,2919.6,2919.2,0.00301698]
[1645172621992,0.3,2919.5,2919.2,0.00301698]
[1645172622841,0.85686,2919.4,2918.9,0.00498484]
[1645172623045,0.85686,2919.4,2919.2,0.00301698]
[1645172624048,0.85686,2919.4,2918.9,0.00498484]
[1645172624247,1.7137554,2919.4,2919.2,0.00301701]
[1645172624647,0.3,2919.3,2919.2,0.00301701]
[1645172625254,0.3,2919.3,2918.9,0.00498484]
[1645172625255,1.15692,2919.3,2918.9,0.00498484]
[1645172625448,1.15692,2919.3,2919.1,0.00301704]
[1645172625449,3.5,2919.2,2919.1,0.00301704]
[1645172625649,3.8,2919.2,2919.1,0.00301704]
[1645172625849,4.8,2919.2,2919.1,0.00301704]
[1645172626050,6.17376944,2919.2,2919.1,0.00301704]
[1645172626248,26.98814626,2919.2,2919.1,0.00301704]
[1645172626448,6.94814626,2919.2,2918.9,0.00498484]
[1645172626690,6.94814626,2919.2,2919.0,0.00301711]
[1645172626691,1.85696,2919.1,2919.0,0.00301711]
[1645172626890,5.85296,2919.1,2919.0,0.00301711]
[1645172627090,6.15296,2919.1,2919.0,0.00301711]
[1645172627292,2.65296,2919.1,2919.0,0.00301711]
[1645172627494,2.65296,2919.1,2918.9,0.00498484]
[1645172627694,0.3,2919.0,2918.9,0.00498484]
[1645172627898,0.3,2919.0,2918.9,0.00800202]
[1645172628896,0.3,2919.0,2918.8,0.40131835]
[1645172629097,0.3,2919.0,2918.8,0.40433562]
[1645172629498,1.0,2919.2,2918.8,0.40433562]
[1645172629898,0.85692,2919.3,2918.8,0.40131835]
[1645172629899,1.85692,2919.3,2918.8,0.40131835]
[1645172630344,1.85692,2919.3,2918.9,0.00301723]
[1645172630846,0.3,2919.2,2918.9,0.00301723]
[1645172631245,0.3,2919.2,2918.8,0.40131835]
[1645172631454,0.3,2919.2,2918.9,0.00301719]
[1645172631850,0.02273462,2919.0,2918.9,0.00301719]
[1645172632451,0.02273462,2919.0,2918.8,0.40131835]
[1645172632651,0.02273462,2919.0,2918.8,0.40433562]
[1645172633253,2.59363462,2919.0,2918.8,0.40433562]
[1645172633655,1.3,2918.9,2918.8,0.40131835]
[1645172633853,1.3,2918.9,2918.8,0.40433566]
[1645172634097,4.8,2918.9,2918.8,0.40433566]
[1645172634397,4.88611616,2918.9,2918.8,0.40433566]
[1645172634599,1.3,2918.9,2918.8,0.40433566]
[1645172634798,1.3,2918.9,2918.8,0.40131835]
[1645172637847,0.3,2918.9,2918.8,0.40131835]
[1645172638047,1.0,2918.9,2918.8,0.40131835]
[1645172638451,2.31393,2919.0,2918.8,0.40131835]
[1645172638649,0.6,2919.0,2918.8,0.40131835]
[1645172638850,0.6,2919.1,2918.8,0.40131835]
[1645172639850,0.85696,2919.2,2918.8,0.40433563]
[1645172640450,1.71379,2919.2,2918.8,0.40433563]
[1645172640853,1.71379,2919.2,2918.8,0.40131835]
[1645172641055,1.71379,2919.2,2918.9,0.00301724]
[1645172641056,0.6,2919.1,2918.9,0.00301724]
[1645172641251,0.32221143,2919.0,2918.9,1.12343929]
[1645172641893,0.32221143,2919.0,2918.8,0.40131835]
[1645172642294,0.32221143,2919.0,2918.8,0.40433563]
[1645172642695,0.32221143,2919.0,2918.9,1.12056129]
[1645172643603,0.32221143,2919.0,2918.9,1.11956795]
[1645172643798,0.32221143,2919.0,2918.8,0.40433562]
[1645172644198,2.03620143,2919.0,2918.8,0.40433562]
[1645172644401,2.71399,2919.0,2918.8,0.40131835]
[1645172644598,2.71399,2919.0,2918.8,0.40433566]
[1645172644599,1.0,2919.0,2918.8,0.40433566]
[1645172644800,1.85697,2919.0,2918.8,0.40433566]
[1645172645648,1.85697,2919.0,2918.8,0.40131835]
[1645172645948,1.85697,2919.0,2918.8,0.40433566]
[1645172646748,1.85697,2919.0,2918.8,0.40131835]
[1645172647149,1.85697,2919.0,2918.8,0.40433566]
[1645172647949,1.85697,2919.0,2918.8,0.40131835]
[1645172648150,1.85697,2919.0,2918.8,0.40433566]
[1645172648754,0.95604029,2918.9,2918.8,0.40433566]
[1645172648952,0.3,2918.9,2918.8,0.40433566]
[1645172649202,1.6,2918.9,2918.8,0.40131835]
[1645172649908,0.1713,2919.2,2918.8,0.40131835]
[1645172650106,0.65604029,2919.3,2918.8,0.40131835]
[1645172650107,1.51288029,2919.3,2918.8,0.40131835]
[1645172650704,1.51288029,2919.3,2918.9,0.00301724]
[1645172651106,0.85684,2919.3,2918.9,0.00301724]
[1645172651308,1.51288029,2919.3,2918.9,0.00301724]
[1645172651506,1.51288029,2919.3,2918.8,0.40131835]
[1645172651908,1.51288029,2919.3,2919.0,0.00301716]
[1645172652108,0.3,2919.2,2919.0,0.00301716]
[1645172652308,1.1569,2919.2,2919.0,0.00301716]
[1645172652711,1.1569,2919.2,2918.8,0.40131835]
[1645172652951,1.1569,2919.2,2919.0,0.00301716]
[1645172653753,2.1569,2919.2,2919.0,0.00301716]
[1645172653954,2.1569,2919.2,2918.8,0.40131835]
[1645172653955,2.81294029,2919.2,2918.8,0.40131835]
[1645172654351,4.15604029,2919.1,2918.8,0.40131835]
[1645172654551,3.5,2919.1,2918.8,0.40131835]
[1645172654750,1.0,2919.0,2918.8,0.40131835]
[1645172655151,1.3,2919.0,2918.8,0.40131835]
[1645172656153,0.3,2919.0,2918.8,0.40131835]
[1645172656354,0.3,2919.1,2918.8,0.40131835]
[1645172656597,2.4569,2919.2,2918.8,0.40131835]
[1645172656794,2.47961358,2919.2,2918.8,0.40131835]
[1645172657002,7.49263087,2919.2,2918.8,0.40131835]
[1645172657296,0.65604029,2919.1,2918.8,0.40131835]
[1645172657498,0.85698,2919.0,2918.8,0.40131835]
[1645172657900,1.45698,2919.0,2918.8,0.40131835]
[1645172658800,2.11302029,2919.0,2918.8,0.40131835]
[1645172659000,1.45698,2919.0,2918.8,0.40450855]
[1645172659207,2.45698,2919.0,2918.8,0.40450855]
[1645172659901,1.45698,2919.0,2918.8,0.40131835]
[1645172660100,2.45698,2919.0,2918.8,0.40131835]
[1645172660341,1.45698,2919.0,2918.8,0.40450855]
[1645172660544,2.45698,2919.0,2918.8,0.40450855]
[1645172660941,1.45698,2919.0,2918.8,0.40450855]
[1645172661142,1.45698,2919.0,2918.8,0.40131835]
[1645172661143,2.45698,2919.0,2918.8,0.40131835]
[1645172661343,2.45698,2919.0,2918.8,0.40450855]
[1645172661751,1.47971462,2919.0,2918.8,0.40450855]
[1645172661944,2.47971462,2919.0,2918.8,0.40450855]
[1645172662344,2.47971462,2919.0,2918.8,0.40131835]
[1645172662544,2.47971462,2919.0,2918.8,0.40450855]
[1645172663150,1.47971462,2919.0,2918.8,0.40450855]
[1645172663350,0.32253015,2918.9,2918.8,0.40450855]
[1645172663549,0.32253015,2918.9,2918.8,1.52295568]
[1645172663751,0.32253015,2918.9,2918.8,1.52614588]
[1645172664097,1.32253015,2918.9,2918.8,0.40450855]
[1645172664300,0.32253015,2918.9,2918.8,0.40450855]
[1645172664496,1.32253015,2918.9,2918.8,0.40450855]
[1645172664697,0.32253015,2918.9,2918.8,0.40131835]
[1645172664897,1.32253015,2918.9,2918.8,0.40131835]
[1645172665099,0.32253015,2918.9,2918.8,1.52302506]
[1645172665401,1.32253015,2918.9,2918.8,1.52302506]
[1645172665601,0.32253015,2918.9,2918.8,1.52302506]
[1645172665802,1.32253015,2918.9,2918.8,1.52302506]
[1645172666004,0.32253015,2918.9,2918.8,1.52302506]
[1645172666200,1.32253015,2918.9,2918.8,1.52302506]
[1645172666400,0.32253015,2918.9,2918.8,1.52302506]
[1645172666804,0.31860519,2918.9,2918.8,1.52302506]
[1645172667001,0.97464548,2918.9,2918.8,0.40131835]
[1645172667401,1.97464548,2918.9,2918.8,0.40131835]
[1645172668452,1.31860519,2918.9,2918.8,0.40131835]
[1645172669852,1.97464548,2918.9,2918.8,0.40131835]
[1645172670252,5.47464548,2918.9,2918.8,0.40131835]
[1645172670654,1.97464548,2918.9,2918.8,0.40131835]
[1645172672499,1.31860519,2918.9,2918.8,0.40131835]
[1645172672701,0.31860519,2918.9,2918.8,0.40131835]
[1645172676652,0.97464548,2918.9,2918.8,0.40131835]
[1645172677255,1.27464548,2918.9,2918.8,0.40131835]
[1645172678256,0.61860519,2918.9,2918.7,0.00301962]
[1645172678454,0.9689953,2918.9,2918.7,0.00301962]
[1645172678855,1.6689953,2918.9,2918.7,0.00301962]
[1645172679099,0.6689953,2918.9,2918.6,1.0]
[1645172679298,1.6689953,2918.9,2918.6,1.0]
[1645172679498,1.6689953,2918.9,2918.7,0.00301965]
[1645172680302,0.6689953,2918.9,2918.7,0.00301965]
[1645172680502,0.6689953,2918.9,2918.6,1.0]
[1645172680801,0.6689953,2918.9,2918.7,0.00301965]
[1645172681601,0.6689953,2918.9,2918.6,1.0]
[1645172681802,0.9689953,2918.9,2918.7,0.0030167]
[1645172682857,0.9689953,2918.9,2918.6,1.0]
[1645172682858,0.65604029,2918.8,2918.6,1.0]
[1645172683058,1.92503559,2918.9,2918.7,0.0030167]
[1645172683356,2.92503559,2918.9,2918.7,0.0030167]
[1645172683556,2.2689953,2918.9,2918.7,0.0030167]
[1645172683757,1.2689953,2918.9,2918.7,0.0030167]
[1645172683958,1.2689953,2918.9,2918.6,1.0]
[1645172683959,25.8089953,2918.9,2918.6,1.0]
[1645172684160,0.65657242,2918.7,2918.6,1.0]
[1645172684356,2.94009191,2918.7,2918.6,1.0]
[1645172684561,2.58351949,2918.7,2918.6,1.0]
[1645172684757,1.796,2918.7,2918.6,1.0]
[1645172684961,2.45245425,2918.7,2918.6,1.0]
[1645172685158,3.30814893,2918.7,2918.6,1.0]
[1645172686361,2.65028855,2918.7,2918.6,1.0]
[1645172686803,3.01230086,2918.7,2918.6,1.0]
[1645172687003,3.01230086,2918.7,2918.6,2.08446473]
[1645172687206,3.01230086,2918.7,2918.6,1.0]
[1645172687511,5.8573058,2918.6,2918.5,0.00301727]
[1645172687707,0.3,2918.5,2918.4,1.09329298]
[1645172687914,2.15801231,2918.5,2918.4,1.09329298]
[1645172688109,1.15801231,2918.5,2918.4,1.09329298]
[1645172688309,2.45801231,2918.5,2918.4,1.09329298]
[1645172688512,2.45801231,2918.5,2918.2,1.09329298]
[1645172688711,0.36201231,2918.4,2918.3,1.09329298]
[1645172688909,0.36201231,2918.4,2918.3,0.00498484]
[1645172689109,0.36201231,2918.4,2918.3,1.09329298]
[1645172689309,0.36201231,2918.4,2918.3,1.09827782]
[1645172691765,0.38474134,2918.4,2918.3,1.09827782]
[1645172692969,23.92474134,2918.4,2918.3,1.09827782]
[1645172693272,22.36458767,2918.4,2918.3,0.00498484]
[1645172693469,26.79395677,2918.4,2918.2,0.00301745]
[1645172693672,2.572021,2918.2,2917.7,1.07349559]
[1645172693872,0.36201231,2918.1,2917.8,0.00498484]
[1645172694100,0.36201231,2918.1,2917.9,1.07349559]
[1645172694101,0.66201231,2918.1,2917.9,1.07349559]
[1645172694405,0.36201231,2918.0,2917.9,1.07349559]
[1645172694702,0.36201231,2918.0,2917.9,1.07848043]
[1645172694902,0.36201231,2918.0,2917.9,1.07349559]
[1645172697005,0.36201231,2918.0,2917.8,0.00301774]
[1645172697206,2.07683231,2918.0,2917.7,1.06312223]
[1645172697406,1.0147206,2917.8,2917.7,1.06312223]
[1645172697604,1.0147206,2917.8,2917.7,1.06810707]
[1645172697855,0.68184782,2917.8,2917.7,1.06810707]
[1645172698051,0.3,2917.8,2917.7,1.06810707]
[1645172698253,0.68184358,2917.8,2917.7,1.06810707]
[1645172698451,0.3,2917.8,2917.7,1.06810707]
[1645172698652,1.68183372,2917.8,2917.7,1.06810707]
[1645172698851,1.3,2917.8,2917.7,1.06810707]
[1645172699052,1.68177268,2917.8,2917.7,1.06810707]
[1645172699351,0.3,2917.8,2917.7,1.06810707]
[1645172699652,1.68177451,2917.8,2917.7,1.06810707]
[1645172699852,0.3,2917.8,2917.7,1.06810707]
[1645172700053,1.68171425,2917.8,2917.7,1.06810707]
[1645172700254,1.68171374,2917.8,2917.7,1.06810707]
[1645172700458,1.3,2917.8,2917.7,1.06810707]
[1645172700656,0.3,2917.8,2917.7,1.06810707]
[1645172700855,0.6817706,2917.8,2917.7,1.06810707]
[1645172701057,0.68178791,2917.8,2917.7,1.06810707]
[1645172701707,0.3,2917.8,2917.7,1.06810707]
[1645172702508,0.68179862,2917.8,2917.7,1.06810707]
[1645172703312,0.3,2917.8,2917.7,1.06810707]
[1645172703811,0.68171957,2917.8,2917.7,1.06810707]
[1645172704014,0.68170568,2917.8,2917.7,1.06810707]
[1645172704216,0.68170654,2917.8,2917.7,1.06810707]
[1645172704415,0.3,2917.8,2917.7,1.06810707]
[1645172704617,0.68170623,2917.8,2917.7,1.06810707]
[1645172704815,0.68170808,2917.8,2917.7,1.06810707]
[1645172705216,0.68164569,2917.8,2917.7,1.06810707]
[1645172705456,0.3,2917.8,2917.7,1.06810707]
[1645172705664,0.68159806,2917.8,2917.7,1.06810707]
[1645172705857,0.68158837,2917.8,2917.7,1.06810707]
[1645172706063,0.6814821,2917.8,2917.7,1.06810707]
[1645172706362,0.3,2917.8,2917.7,1.06810707]
[1645172706763,2.62536931,2918.3,2917.7,1.06810707]
[1645172706764,1.00343402,2918.4,2917.7,4.56810707]
[1645172706965,1.94184982,2918.6,2917.9,1.53583698]
[1645172706966,0.38143784,2918.3,2917.9,1.53583698]
[1645172707165,2.68687311,2918.8,2918.0,4.56810707]
[1645172707166,0.38143784,2918.5,2918.0,4.56810707]
[1645172707367,0.65632684,2918.8,2918.1,1.06810707]
[1645172707368,0.38143784,2918.4,2918.1,1.06810707]
[1645172707564,0.38143784,2918.3,2918.2,1.06810707]
[1645172707764,0.38143784,2918.3,2918.2,2.00997171]
[1645172707966,0.65632684,2919.1,2918.2,4.56813465]
[1645172708174,0.37414159,2919.0,2918.3,1.06813465]
[1645172708464,0.37414159,2918.9,2918.3,1.06813465]
[1645172708667,0.1713,2919.5,2918.3,1.06813465]
[1645172708668,0.37414159,2918.8,2918.4,3.5]
[1645172708864,0.65632684,2919.4,2918.9,0.8601537]
[1645172709305,0.37410747,2919.3,2918.9,0.8601537]
[1645172709505,0.37410747,2919.2,2918.4,1.316]
[1645172709706,0.37410747,2919.1,2918.5,4.57640397]
[1645172709905,0.37410747,2919.0,2918.6,1.07640397]
[1645172710107,0.65632684,2919.4,2918.7,4.57640397]
[1645172710108,0.37410747,2918.9,2918.7,4.57640397]
[1645172710309,0.65632684,2919.4,2918.8,4.57640397]
[1645172710508,0.65632684,2919.4,2918.4,0.1711]
[1645172710509,0.36593295,2919.3,2918.4,3.6711]
[1645172710711,0.36593295,2919.2,2918.7,0.9577979]
[1645172710908,0.36593295,2919.1,2918.8,1.0763854]
[1645172711111,0.36593295,2919.0,2918.8,4.5763854]
[1645172711309,0.36593295,2918.9,2918.7,0.00301981]
[1645172711508,0.36593295,2918.8,2918.7,0.00301981]
[1645172711709,0.36593295,2918.8,2918.6,3.5]
[1645172711909,0.3,2919.3,2918.7,1.07936228]
[1645172712108,0.36580587,2919.2,2918.8,3.5]
[1645172712510,0.36580587,2919.1,2918.7,3.50301981]
[1645172712711,0.3,2919.4,2918.8,1.07566948]
[1645172712712,0.36580587,2919.0,2918.8,1.07566948]
[1645172712960,0.36580587,2918.9,2918.8,1.07566948]
[1645172713163,0.36580587,2918.9,2918.8,1.07868921]
[1645172713363,0.36580587,2919.3,2918.8,1.07868921]
[1645172713562,0.3,2919.4,2918.8,1.07868921]
[1645172713563,0.36580587,2919.2,2918.8,0.00301973]
[1645172713760,0.3,2919.4,2918.8,1.07854706]
[1645172713761,0.36580587,2919.1,2918.8,1.07854706]
[1645172713961,0.36580587,2919.0,2918.8,1.07552733]
[1645172714163,0.36580587,2918.9,2918.8,1.07552733]
[1645172714363,0.36580587,2918.9,2918.8,4.57552733]
[1645172714564,0.36580587,2919.3,2918.8,4.57552733]
[1645172714765,0.36580587,2919.2,2918.9,1.07552733]
[1645172714965,0.36580587,2919.1,2919.0,3.5]
[1645172715165,0.36580587,2919.1,2919.0,4.57552733]
[1645172715368,0.36580587,2919.6,2919.0,4.57552733]
[1645172715566,0.66580587,2919.6,2919.1,1.07552733]
[1645172715766,1.30451302,2919.8,2919.2,3.5]
[1645172715767,0.36580587,2919.5,2919.2,3.5]
[1645172715969,0.30451302,2919.8,2918.9,0.00301313]
[1645172715970,0.36580587,2919.4,2918.9,0.00301313]
[1645172716166,0.36580587,2919.3,2918.9,0.00301313]
[1645172716366,0.00451302,2919.8,2918.9,3.5]
[1645172716367,0.36580587,2919.2,2918.9,3.5]
[1645172716604,0.00451302,2919.8,2919.0,1.07460079]
[1645172716605,0.36580587,2919.1,2919.0,1.07460079]
[1645172716803,0.36580587,2919.1,2919.0,4.57460079]
[1645172717006,0.00451302,2919.8,2919.0,1.08801765]
[1645172717203,0.36581637,2919.7,2919.1,4.57432867]